bitfinex/quotes_ETHUSD_20220311
["timestamp","ask_amount","ask_price","bid_price","bid_amount"]
[1646976318803,0.00104987,2546.9,2546.7,0.00229627]
[1646976319003,1.0,2546.8,2546.7,0.00229627]
[1646976319404,0.98287987,2546.9,2546.7,0.00229627]
[1646976319603,0.98287987,2546.9,2546.8,0.00096759]
[1646976320859,2.6020564,2546.9,2546.8,0.00096759]
[1646976321050,1.98624808,2546.9,2546.8,0.00096759]
[1646976321250,0.00104987,2546.9,2546.8,0.00096759]
[1646976322253,2.28178,2547.1,2546.8,0.00096759]
[1646976322455,0.3,2547.1,2546.8,0.00096759]
[1646976322654,0.04734815,2547.2,2546.8,0.00096759]
[1646976322861,0.05119223,2547.5,2546.8,0.00096759]
[1646976323354,2.694e-05,2546.9,2546.8,0.08718781]
[1646976325006,2.694e-05,2546.9,2546.8,3.58718781]
[1646976325506,2.694e-05,2546.9,2546.8,0.08718781]
[1646976327004,2.694e-05,2546.9,2546.8,0.00096759]
[1646976328648,0.98179,2547.1,2546.8,0.00096759]
[1646976329251,1.0,2546.9,2546.8,0.00096759]
[1646976329451,1.09431461,2547.2,2546.8,0.00096759]
[1646976329751,1.39431461,2547.2,2546.8,0.00291419]
[1646976330557,1.39431461,2547.2,2546.8,0.00096759]
[1646976330955,1.39431461,2547.2,2546.9,0.00194656]
[1646976331556,1.39431461,2547.2,2547.1,0.062666]
[1646976332096,1.39431461,2547.2,2546.8,0.00096759]
[1646976332097,1.39431461,2547.2,2546.9,0.00194652]
[1646976332700,1.39431461,2547.2,2547.1,0.062666]
[1646976333105,1.09431461,2547.2,2547.1,0.062666]
[1646976333303,1.09431461,2547.2,2546.9,0.00194786]
[1646976333503,0.98176,2547.1,2546.9,0.00194786]
[1646976333708,0.919094,2547.1,2546.9,0.00194786]
[1646976334303,0.919094,2547.1,2546.8,0.00096759]
[1646976334504,0.919094,2547.1,2546.9,0.0019479]
[1646976334705,1.09431461,2547.2,2546.9,0.0019479]
[1646976335505,1.09431461,2547.2,2546.8,0.00096759]
[1646976335710,1.09431461,2547.2,2546.9,0.00194786]
[1646976336756,1.09431461,2547.2,2546.8,0.00096759]
[1646976336956,1.09431461,2547.2,2546.9,0.00194756]
[1646976337757,1.09431461,2547.2,2546.8,0.00096759]
[1646976338156,1.09431461,2547.2,2546.9,0.00194756]
[1646976338959,1.09431461,2547.2,2546.8,0.98258759]
[1646976339358,1.09431461,2547.2,2546.9,0.00194756]
[1646976340204,1.09431461,2547.2,2546.8,0.98258759]
[1646976340404,1.09431461,2547.2,2546.9,0.00194763]
[1646976341406,1.09431461,2547.2,2546.8,0.00096759]
[1646976341805,1.09431461,2547.2,2546.9,0.00194763]
[1646976342609,1.09431461,2547.2,2546.8,0.00096759]
[1646976342911,2.07607461,2547.2,2546.9,0.00194763]
[1646976343550,0.05940232,2546.7,2546.6,1.96328]
[1646976343949,0.05940232,2546.7,2546.5,0.0770222]
[1646976344149,0.98182,2547.0,2546.5,0.0770222]
[1646976344751,1.02082413,2546.4,2546.2,1.96361]
[1646976344953,1.02082413,2546.4,2546.0,1.2353]
[1646976345154,1.88932413,2546.4,2545.9,0.07563655]
[1646976345353,1.88932413,2546.4,2545.7,5.9028]
[1646976345354,1.93403344,2546.4,2545.7,2.4028]
[1646976345554,0.462,2546.3,2545.7,2.4028]
[1646976345755,0.05940232,2545.9,2545.7,2.4028]
[1646976345953,0.05940232,2545.9,2545.2,0.1963]
[1646976345954,0.87882297,2545.8,2545.2,0.1963]
[1646976346157,1.14285002,2545.4,2545.2,0.1963]
[1646976346353,1.2512,2545.8,2545.2,0.1963]
[1646976346554,1.3038652,2545.8,2545.2,0.1963]
[1646976346753,2.5862252,2545.8,2545.7,0.00194857]
[1646976346954,0.05745375,2545.2,2545.1,0.07150722]
[1646976347403,1.74436,2545.8,2545.1,0.07150722]
[1646976347404,0.98242,2545.5,2545.1,0.07150722]
[1646976347606,0.8459333,2545.4,2545.0,7.33]
[1646976347804,1.8283933,2545.4,2545.0,7.33]
[1646976348003,0.05745375,2545.1,2545.0,7.33]
[1646976348504,0.98247,2545.3,2545.0,7.33]
[1646976348903,0.98249,2545.2,2545.0,7.33]
[1646976349107,0.98249,2545.2,2545.0,7.27254625]
[1646976349909,0.98249,2545.2,2544.8,0.08347888]
[1646976350412,0.89901112,2544.7,2544.6,8.5548]
[1646976350608,0.89901112,2544.7,2544.6,7.33]
[1646976350876,0.89901112,2544.7,2544.6,7.5263]
[1646976351072,0.98247,2545.3,2544.6,7.5263]
[1646976351073,0.05946589,2545.6,2544.7,5.57736593]
[1646976351274,0.3929,2545.9,2545.2,0.0120428]
[1646976351673,0.3929,2545.9,2545.3,0.08024678]
[1646976351871,0.3929,2545.9,2545.3,5.89426136]
[1646976352074,0.3929,2545.9,2545.5,0.08331211]
[1646976352275,0.05224804,2546.4,2545.5,0.08331211]
[1646976352473,0.05854128,2546.6,2545.5,4.94032669]
[1646976352673,0.05854128,2546.6,2545.7,0.07244074]
[1646976352874,0.9818,2546.8,2545.7,0.46574074]
[1646976353073,0.9818,2546.8,2546.3,1.06856859]
[1646976354380,0.05861388,2547.0,2546.7,1.09311007]
[1646976354602,0.05038821,2547.3,2546.7,1.09311007]
[1646976354802,0.00197608,2547.5,2546.7,1.09311007]
[1646976355003,1.61900167,2547.6,2546.7,1.09311007]
[1646976355208,0.05075716,2547.5,2546.7,1.09311007]
[1646976355700,0.05132436,2547.3,2546.7,1.09311007]
[1646976356902,0.05132436,2547.3,2546.8,3.33158994]
[1646976357107,0.3,2547.5,2546.8,3.40409698]
[1646976357312,0.34678659,2547.6,2546.9,0.07840763]
[1646976357508,0.04678659,2547.6,2546.9,0.83160763]
[1646976357708,0.35786834,2547.8,2546.9,0.83160763]
[1646976357909,1.27660843,2547.8,2547.2,1.03333568]
[1646976358554,0.01006764,2547.3,2547.2,1.03333568]
[1646976359759,0.01006764,2547.3,2547.2,1.11650885]
[1646976362806,0.01006764,2547.3,2547.2,0.08317317]
[1646976363007,0.01006764,2547.3,2546.8,0.08388344]
[1646976363406,0.00953604,2547.3,2546.8,0.08388344]
[1646976364211,0.00953604,2547.3,2546.8,1.08708302]
[1646976365108,0.0609711,2547.3,2546.8,1.00319958]
[1646976365509,0.00953604,2547.3,2546.8,1.00319958]
[1646976367376,0.00953604,2547.3,2546.8,1.98462958]
[1646976368179,0.00953604,2547.3,2547.2,1.14232943]
[1646976370505,0.00953604,2547.3,2547.2,4.64232943]
[1646976371506,0.00953604,2547.3,2547.2,5.64232943]
[1646976375961,0.00829618,2547.3,2547.2,5.64232943]
[1646976377707,0.00829618,2547.3,2547.2,4.64232943]
[1646976378108,0.00829618,2547.3,2547.2,1.14232943]
[1646976378409,0.00829618,2547.3,2547.2,4.64232943]
[1646976378609,0.05405742,2547.7,2547.2,4.64232943]
[1646976378808,0.05405742,2547.7,2547.2,1.14232943]
[1646976379210,0.05405742,2547.7,2547.2,1.7181994]
[1646976379410,0.05405742,2547.7,2547.3,3.5]
[1646976380610,1.0,2547.8,2547.3,3.5]
[1646976380853,0.05805393,2548.0,2547.3,3.5]
[1646976384462,0.05805393,2548.0,2547.3,4.48126]
[1646976385308,0.0539456,2548.3,2547.3,5.48126]
[1646976385505,0.05196952,2548.3,2547.3,5.48126]
[1646976385706,0.35196952,2548.3,2547.3,5.87456]
[1646976385907,0.05196952,2548.3,2547.4,0.07797245]
[1646976388350,0.05196952,2548.3,2547.5,0.9812244]
[1646976388552,0.05990608,2548.3,2547.6,3.5]
[1646976388950,1.41862146,2548.4,2548.3,0.94009392]
[1646976389152,0.78610724,2548.1,2547.8,3.5]
[1646976389352,0.78610724,2548.1,2547.6,3.5]
[1646976389953,0.78610724,2548.1,2547.7,0.08538636]
[1646976393406,0.78610724,2548.1,2547.8,0.00589263]
[1646976394910,0.78610724,2548.1,2548.0,1.14572285]
[1646976395111,0.78610724,2548.1,2548.0,4.64572285]
[1646976395309,0.78610724,2548.1,2548.0,5.62673285]
[1646976395512,0.75271809,2548.1,2548.0,5.62673285]
[1646976395714,0.75271809,2548.1,2548.0,2.12673285]
[1646976397169,0.00197608,2548.7,2548.2,5.5]
[1646976397365,0.06646084,2548.9,2548.4,0.9807963]
[1646976397765,1.6179564,2548.8,2548.3,2.9615925]
[1646976397962,1.61667757,2548.8,2548.3,1.9615925]
[1646976398163,1.61667757,2548.8,2548.1,3.5]
[1646976398365,0.04331332,2548.9,2548.1,3.5]
[1646976399366,0.84869511,2548.7,2548.0,0.60185789]
[1646976399620,1.0311801,2548.5,2548.0,0.00490681]
[1646976399906,0.04511282,2548.4,2548.0,0.00490681]
[1646976400908,1.02652282,2548.4,2548.0,0.00490681]
[1646976401106,0.0513499,2548.3,2548.0,0.00490681]
[1646976401509,0.04249103,2548.6,2548.0,0.00490681]
[1646976403456,0.04249103,2548.6,2547.9,0.85976691]
[1646976403653,0.04249103,2548.6,2548.0,3.5]
[1646976404054,0.04249103,2548.6,2548.1,3.5]
[1646976404257,3.71945471,2548.9,2548.1,4.5]
[1646976404258,0.05109108,2548.8,2548.1,4.5]
[1646976404455,0.05109108,2548.8,2548.1,5.5347]
[1646976405054,0.05109108,2548.8,2548.2,0.980931]
[1646976405354,0.05109108,2548.8,2548.3,3.5]
[1646976405754,0.01534073,2549.0,2548.3,3.5]
[1646976406554,0.04689248,2549.2,2548.3,4.4808808]
[1646976406754,1.06606813,2549.2,2548.3,6.4617308]
[1646976406955,1.04934293,2549.2,2548.3,6.4617308]
[1646976407204,1.04934293,2549.2,2548.7,1.04648356]
[1646976407604,1.03016728,2549.2,2548.7,1.04648356]
[1646976408005,1.0340028,2549.2,2548.7,1.04648356]
[1646976408205,1.00383552,2549.2,2548.7,1.04648356]
[1646976408907,1.0,2549.2,2548.7,1.04648356]
[1646976409107,1.00383552,2549.2,2548.7,1.04648356]
[1646976410107,1.0,2549.2,2548.7,1.04648356]
[1646976410308,1.00383552,2549.2,2548.7,1.04648356]
[1646976410506,0.00383552,2549.2,2548.7,1.04648356]
[1646976410708,0.00383552,2549.2,2548.6,0.07419026]
[1646976411353,0.89045481,2549.4,2548.6,0.07419026]
[1646976411555,0.00383545,2549.2,2548.6,0.07419026]
[1646976411752,0.00383545,2549.2,2548.4,3.50490726]
[1646976411753,0.00383545,2549.2,2548.4,4.48094182]
[1646976411958,0.00383545,2549.2,2548.4,0.98094182]
[1646976412160,0.04761613,2549.1,2548.4,0.00490726]
[1646976412559,1.04761613,2549.1,2548.4,0.00490726]
[1646976412760,0.04596855,2549.0,2548.4,0.00490726]
[1646976413361,0.05182472,2548.9,2548.3,1.1838]
[1646976416513,0.05182472,2548.9,2548.4,3.5]
[1646976416711,0.05182472,2548.9,2548.3,1.1838]
[1646976417915,1.61791059,2548.8,2548.3,1.1838]
[1646976418117,1.61791059,2548.8,2548.2,3.5]
[1646976418555,1.61791059,2548.8,2548.4,0.00487048]
[1646976418753,0.05182472,2548.9,2548.4,0.00487048]
[1646976418956,0.0153408,2549.0,2548.4,0.00487048]
[1646976419152,1.61784107,2548.9,2548.4,0.00487048]
[1646976419954,0.07161722,2549.2,2548.4,0.00487048]
[1646976420254,1.61775627,2549.1,2548.4,0.00487048]
[1646976423410,1.61775627,2549.1,2548.3,0.08506764]
[1646976426359,0.04453442,2549.0,2548.2,3.5]
[1646976426558,1.61775627,2548.9,2548.2,3.5]
[1646976428463,1.61775627,2548.9,2548.4,0.004873]
[1646976433361,1.61775627,2548.9,2548.0,1.40986964]
[1646976433562,0.04167639,2548.8,2548.0,1.09009945]
[1646976433761,1.61775627,2548.7,2548.1,3.5]
[1646976433962,1.61775627,2548.7,2548.0,1.17921216]
[1646976434163,1.61775627,2548.7,2548.1,3.5]
[1646976434363,1.61775627,2548.7,2548.1,3.57149674]
[1646976434562,1.61775627,2548.8,2548.2,0.07656676]
[1646976434767,1.61775627,2548.7,2548.2,0.07656676]
[1646976434961,0.47734089,2548.9,2548.2,0.07656676]
[1646976435163,1.61794322,2548.8,2548.2,0.07656676]
[1646976435762,0.01534085,2549.0,2548.2,0.07656676]
[1646976435961,1.61781177,2548.9,2548.2,0.07656676]
[1646976436768,1.28759407,2549.1,2548.2,0.07656676]
[1646976436968,1.61781008,2549.0,2548.2,0.07656676]
[1646976437814,1.61693773,2549.0,2548.2,0.07656676]
[1646976438212,1.61693773,2549.0,2548.2,1.05749896]
[1646976438413,1.61693773,2549.0,2548.3,3.50491571]
[1646976440119,1.61693773,2549.0,2548.4,0.08135949]
[1646976440318,1.61693773,2549.0,2548.8,1.11359323]
[1646976440519,0.01917579,2549.2,2548.8,1.11359323]
[1646976440965,0.01917579,2549.2,2548.4,0.08135949]
[1646976441362,0.05367302,2549.5,2548.5,0.08822128]
[1646976441567,0.00383558,2549.2,2548.6,0.07034795]
[1646976442564,0.93348442,2549.3,2548.7,0.91271277]
[1646976442769,0.00383545,2549.2,2548.8,3.5]
[1646976443765,2.01548302,2549.5,2548.7,0.91271277]
[1646976443964,0.00383558,2549.2,2548.8,3.5]
[1646976444165,0.00383558,2549.2,2548.7,0.91271277]
[1646976444616,0.00383558,2549.2,2548.8,3.5]
[1646976444806,0.00383558,2549.2,2548.7,0.91271277]
[1646976445006,0.98099,2549.3,2548.8,3.5]
[1646976445206,1.1902928,2549.5,2548.6,0.07034795]
[1646976445207,0.00383551,2549.2,2548.6,0.07034795]
[1646976446106,1.13661978,2549.5,2549.0,0.91391379]
[1646976446311,1.0,2549.6,2549.0,0.99900989]
[1646976446512,0.00383545,2549.2,2549.0,0.99900989]
[1646976446911,0.00383545,2549.2,2549.1,0.07459696]
[1646976447311,1.0,2549.6,2549.1,0.07459696]
[1646976447613,0.00383563,2549.3,2549.1,0.07459696]
[1646976448459,0.89290972,2549.6,2549.1,0.07459696]
[1646976448858,0.00383562,2549.3,2549.1,0.07459696]
[1646976449659,0.89290972,2549.6,2549.1,0.07459696]
[1646976450060,0.00383562,2549.3,2549.1,0.07459696]
[1646976450463,0.00383562,2549.3,2549.2,0.07458038]
[1646976450967,0.89290972,2549.6,2549.2,0.07458038]
[1646976451367,0.0038356,2549.4,2549.2,0.07458038]
[1646976452119,1.0,2549.8,2549.2,0.07458038]
[1646976452514,0.00326817,2549.4,2549.2,0.07458038]
[1646976453114,0.00326817,2549.4,2549.2,1.05508038]
[1646976453315,1.0,2549.8,2549.3,3.8]
[1646976453512,1.01307072,2549.8,2549.4,0.09043385]
[1646976454316,1.01307072,2549.8,2549.5,0.0716562]
[1646976454516,1.0,2549.8,2549.5,3.5716562]
[1646976454718,1.0,2549.8,2549.6,1.05966428]
[1646976454919,0.00397796,2549.7,2549.6,1.05966428]
[1646976455118,0.00397796,2549.7,2549.6,4.55966428]
[1646976455318,0.00397796,2549.7,2549.6,3.57929428]
[1646976455719,1.0,2549.8,2549.6,3.57929428]
[1646976455962,1.00397794,2549.8,2549.7,0.07620585]
[1646976456965,1.0,2549.8,2549.7,0.07620585]
[1646976457866,1.0,2549.8,2549.7,3.57620585]
[1646976460308,0.99878525,2549.8,2549.7,3.57620585]
[1646976460509,0.39484489,2550.4,2549.8,1.21115202]
[1646976460714,1.61696299,2550.3,2549.8,1.21115202]
[1646976460914,0.00381616,2549.9,2549.8,1.21115202]
[1646976461116,0.00381616,2549.9,2549.8,0.08911134]
[1646976461518,0.00381616,2549.9,2549.7,3.5]
[1646976461715,0.04962958,2550.4,2549.6,1.8098873]
[1646976461916,0.04962958,2550.4,2549.6,0.5905873]
[1646976461917,2.07903045,2550.3,2549.6,0.5905873]
[1646976462117,0.00385253,2550.0,2549.6,0.5905873]
[1646976462314,0.00385253,2550.0,2549.6,1.43953971]
[1646976462616,0.00385253,2550.0,2549.7,0.07503689]
[1646976462814,0.00385253,2550.0,2549.6,1.43953971]
[1646976463018,1.66399076,2550.2,2549.6,1.43953971]
[1646976463215,0.04698206,2550.2,2549.6,1.43953971]
[1646976463459,0.00385254,2549.9,2549.6,1.43953971]
[1646976463663,0.00385254,2549.9,2549.6,0.5905873]
[1646976464260,0.04698206,2550.2,2549.6,0.5905873]
[1646976464459,0.00385255,2549.9,2549.6,0.5905873]
[1646976465566,0.00384436,2549.9,2549.6,0.5905873]
[1646976466567,1.61704628,2550.2,2549.6,0.5905873]
[1646976466765,2.02352957,2550.4,2549.6,0.5905873]
[1646976466766,0.00384436,2549.9,2549.6,0.5905873]
[1646976467213,0.00384436,2549.9,2549.7,3.5]
[1646976467615,0.00384436,2549.9,2549.7,4.6911]
[1646976467816,0.00194489,2550.4,2549.8,3.5]
[1646976468020,0.00384435,2549.9,2549.8,3.5]
[1646976468920,0.84851302,2550.4,2549.8,3.5]
[1646976469118,0.84851302,2550.4,2549.9,0.08038676]
[1646976469317,0.00384618,2550.0,2549.9,0.08038676]
[1646976469517,0.00384618,2550.0,2549.7,0.08663178]
[1646976470117,0.84851302,2550.4,2549.7,0.08663178]
[1646976470718,0.00384618,2550.0,2549.7,0.08663178]
[1646976471366,2.80957302,2550.4,2549.7,0.08663178]
[1646976471565,0.00384618,2550.0,2549.7,0.08663178]
[1646976472568,1.61696547,2550.2,2549.7,0.08663178]
[1646976472968,0.00384577,2550.0,2549.7,0.08663178]
[1646976473770,1.96124,2550.2,2549.7,0.08663178]
[1646976474169,0.00384577,2550.0,2549.7,0.08663178]
[1646976475112,1.616997,2550.3,2549.7,0.08663178]
[1646976475308,0.00384577,2550.0,2549.7,0.08663178]
[1646976476110,0.00384577,2550.0,2549.7,1.0164319]
[1646976476310,1.616997,2550.3,2549.7,1.0164319]
[1646976476516,0.00377412,2550.0,2549.7,1.0164319]
[1646976476714,0.00377412,2550.0,2549.7,4.5164319]
[1646976477415,1.616997,2550.3,2549.7,4.5164319]
[1646976477621,0.00377412,2550.0,2549.7,4.5164319]
[1646976477816,0.00377412,2550.0,2549.7,4.42980012]
[1646976478016,0.00377412,2550.0,2549.8,0.07506634]
[1646976478561,1.616997,2550.3,2549.8,0.07506634]
[1646976478764,1.12318007,2550.3,2549.8,0.07506634]
[1646976478962,0.00377411,2550.0,2549.8,0.07506634]
[1646976479166,0.00377411,2550.0,2549.7,4.42980012]
[1646976479767,1.61690351,2550.3,2549.8,0.07113534]
[1646976480065,0.00422189,2550.5,2549.8,0.07113534]
[1646976480066,0.00300472,2550.0,2549.8,0.07113534]
[1646976480264,0.00300472,2550.0,2549.7,0.92980012]
[1646976480463,0.00163298,2550.0,2549.6,4.0905873]
[1646976480865,1.61686558,2550.3,2549.6,4.0905873]
[1646976480866,0.0543225,2550.2,2549.6,4.0905873]
[1646976481464,0.0543225,2550.2,2549.6,0.5905873]
[1646976481863,0.0543225,2550.2,2549.6,4.0905873]
[1646976483718,0.00398185,2550.0,2549.6,0.5905873]
[1646976484520,1.61691694,2550.1,2549.6,0.5905873]
[1646976484721,0.0543225,2550.2,2549.6,0.5905873]
[1646976484920,0.00398188,2549.9,2549.6,0.5905873]
[1646976485723,0.00398188,2549.9,2549.6,4.02469135]
[1646976485966,0.04785124,2550.4,2549.6,0.5905873]
[1646976486166,0.00398189,2549.9,2549.6,0.5905873]
[1646976486969,0.04979613,2550.4,2549.6,0.5905873]
[1646976487170,0.00325771,2549.9,2549.6,0.5905873]
[1646976488172,0.04979613,2550.4,2549.6,0.5905873]
[1646976488372,0.00390333,2549.9,2549.6,0.5905873]
[1646976488772,0.00390333,2549.9,2549.7,0.08956969]
[1646976489271,0.01561098,2550.3,2549.7,0.08956969]
[1646976489630,0.00390332,2549.9,2549.7,0.08956969]
[1646976491814,1.61686522,2550.2,2549.7,1.06991589]
[1646976492015,0.002277,2550.5,2549.8,0.07412192]
[1646976492016,0.00383916,2549.9,2549.8,0.07412192]
[1646976492617,0.00383916,2549.9,2549.8,3.57412192]
[1646976493021,0.00422189,2550.5,2549.8,3.57412192]
[1646976493221,0.00325765,2550.0,2549.8,3.57412192]
[1646976493464,0.00325765,2550.0,2549.9,0.07778881]
[1646976494264,1.61679193,2550.3,2549.9,0.07778881]
[1646976494464,0.00325765,2550.1,2549.9,0.07778881]
[1646976495066,0.00325765,2550.1,2549.6,4.0905873]
[1646976495067,0.00325765,2550.1,2549.6,0.66520949]
[1646976495465,1.61674231,2550.3,2549.6,0.66520949]
[1646976495865,0.00398836,2550.0,2549.6,0.66520949]
[1646976496065,0.00398836,2550.0,2549.6,4.16520949]
[1646976496665,1.61674231,2550.3,2549.6,4.16520949]
[1646976497111,0.00398838,2549.9,2549.6,4.16520949]
[1646976497921,1.61674231,2550.2,2549.6,4.16520949]
[1646976498119,0.98249489,2550.4,2549.6,4.16520949]
[1646976498120,0.00398839,2549.9,2549.6,4.16520949]
[1646976499219,1.61680001,2550.2,2549.6,4.16520949]
[1646976499419,0.00194489,2550.4,2549.6,4.16520949]
[1646976499420,0.00398839,2549.9,2549.6,4.16520949]
[1646976500423,1.61680459,2550.2,2549.6,4.16520949]
[1646976500618,0.00390582,2549.9,2549.6,4.16520949]
[1646976500885,0.00390582,2549.9,2549.7,0.0812052]
[1646976501487,1.61680332,2550.2,2549.7,0.0812052]
[1646976501689,1.61680332,2550.1,2549.7,0.0812052]
[1646976501887,0.00390581,2549.9,2549.7,0.0812052]
[1646976502694,1.6167159,2550.2,2549.7,0.0812052]
[1646976502892,0.00390581,2549.9,2549.7,0.0812052]
[1646976503993,1.61671974,2550.2,2549.7,0.0812052]
[1646976504193,0.00384182,2549.9,2549.7,0.0812052]
[1646976505220,1.61678592,2550.2,2549.7,0.08024211]
[1646976505416,0.00384182,2549.9,2549.7,0.08024211]
[1646976506220,1.61681713,2550.2,2549.7,0.08024211]
[1646976506630,0.0032576,2549.9,2549.7,0.08024211]
[1646976507423,1.61684091,2550.2,2549.7,0.08024211]
[1646976507624,1.61684091,2550.1,2549.7,0.08024211]
[1646976507826,0.00385938,2549.9,2549.7,0.08024211]
[1646976508668,1.61684206,2550.2,2549.7,0.08024211]
[1646976508865,0.00385938,2549.9,2549.7,0.08024211]
[1646976509867,1.61684206,2550.2,2549.7,0.08024211]
[1646976510066,1.61684206,2550.1,2549.7,0.08024211]
[1646976510266,0.00385938,2549.9,2549.7,0.08024211]
[1646976511072,1.61679571,2550.2,2549.7,0.08024211]
[1646976511268,1.61679571,2550.1,2549.7,0.08024211]
[1646976511470,0.002277,2550.5,2549.7,0.08024211]
[1646976511471,0.00390352,2549.9,2549.7,0.08024211]
[1646976511870,0.00390352,2549.9,2549.7,1.06053211]
[1646976512126,0.00390352,2549.9,2549.8,3.5]
[1646976512323,1.6167966,2550.2,2549.8,3.5]
[1646976512526,0.01561176,2550.3,2550.2,0.83038608]
[1646976513322,1.6323344,2550.3,2550.2,0.83038608]
[1646976513524,1.61672264,2550.3,2550.2,0.83038608]
[1646976513725,0.00390341,2550.4,2550.2,0.83038608]
[1646976513925,1.62062605,2550.4,2550.2,0.83038608]
[1646976514423,1.62062605,2550.4,2549.9,1.28823166]
[1646976514624,1.61672264,2550.4,2550.0,0.07154218]
[1646976514825,1.61672264,2550.3,2550.0,0.07154218]
[1646976515225,0.00384538,2550.4,2550.0,0.07154218]
[1646976515226,1.62056802,2550.4,2550.0,0.07154218]
[1646976515423,1.61672264,2550.3,2549.8,3.57342909]
[1646976515631,0.00384538,2550.4,2549.9,0.08093516]
[1646976515868,0.002277,2550.5,2549.9,0.08093516]
[1646976516264,0.00384544,2550.2,2549.9,0.08093516]
[1646976516466,0.00384544,2550.2,2550.0,0.89907834]
[1646976516666,0.00384544,2550.2,2550.1,3.5]
[1646976517069,0.00384544,2550.2,2550.1,4.6893]
[1646976517270,0.002277,2550.5,2550.2,0.07693252]
[1646976517470,0.00384542,2550.3,2550.2,0.07693252]
[1646976517672,0.00384542,2550.3,2550.2,3.57693252]
[1646976518273,0.002277,2550.5,2550.2,4.55695272]
[1646976518471,0.002277,2550.5,2550.4,0.08449819]
[1646976521417,0.002277,2550.5,2550.4,0.66716006]
[1646976523227,0.002277,2550.5,2550.4,0.58266187]
[1646976523666,1.61891209,2550.5,2550.4,0.58266187]
[1646976528341,0.002277,2550.5,2550.4,0.58266187]
[1646976528646,0.002277,2550.5,2550.4,0.66809387]
[1646976529039,0.00134488,2550.5,2550.4,0.66809387]
[1646976534273,0.05527291,2550.6,2550.4,0.66809387]
[1646976535234,0.0514169,2550.6,2550.4,0.66809387]
[1646976535434,0.0552729,2550.6,2550.4,0.66809387]
[1646976536338,0.0514169,2550.6,2550.4,0.66809387]
[1646976536534,0.05527289,2550.6,2550.4,0.66809387]
[1646976537541,0.0514169,2550.6,2550.4,0.66809387]
[1646976537740,0.05527289,2550.6,2550.4,0.66809387]
[1646976537943,0.05527289,2550.6,2550.5,3.5]
[1646976538142,0.05527289,2550.6,2550.4,0.66809387]
[1646976538765,0.0514169,2550.6,2550.4,0.66809387]
[1646976538969,0.05527289,2550.6,2550.4,0.66809387]
[1646976539872,0.0514169,2550.6,2550.4,0.66809387]
[1646976540269,0.05527289,2550.6,2550.4,0.66809387]
[1646976540472,0.05527289,2550.6,2550.4,0.58266187]
[1646976541172,0.0514169,2550.6,2550.4,0.58266187]
[1646976541373,0.05527289,2550.6,2550.4,0.58266187]
[1646976542420,0.0514169,2550.6,2550.4,0.58266187]
[1646976542619,0.05527289,2550.6,2550.4,0.58266187]
[1646976543619,0.0514169,2550.6,2550.4,0.58266187]
[1646976543820,0.05527289,2550.6,2550.4,0.58266187]
[1646976544821,0.0514169,2550.6,2550.4,0.58266187]
[1646976545021,0.05527289,2550.6,2550.4,0.58266187]
[1646976545873,0.0514169,2550.6,2550.4,0.58266187]
[1646976546273,0.05527289,2550.6,2550.4,0.58266187]
[1646976547075,0.0514169,2550.6,2550.4,0.58266187]
[1646976547479,0.05527289,2550.6,2550.4,0.58266187]
[1646976548278,0.0514169,2550.6,2550.4,0.58266187]
[1646976548680,0.05527289,2550.6,2550.4,0.58266187]
[1646976549484,0.0514169,2550.6,2550.4,0.58266187]
[1646976549918,0.05527289,2550.6,2550.4,0.58266187]
[1646976550119,0.05392844,2550.6,2550.4,0.58266187]
[1646976550619,1.61674021,2550.5,2550.4,0.58266187]
[1646976551825,0.05392844,2550.6,2550.4,0.58266187]
[1646976552031,0.05007245,2550.6,2550.4,0.58266187]
[1646976552225,0.05392845,2550.6,2550.4,0.58266187]
[1646976552626,0.10396317,2550.6,2550.4,0.58266187]
[1646976553375,0.10396316,2550.6,2550.4,0.58266187]
[1646976554471,0.10010717,2550.6,2550.4,0.58266187]
[1646976554675,0.10396316,2550.6,2550.4,0.58266187]
[1646976555070,0.05392844,2550.6,2550.4,0.58266187]
[1646976555673,0.05007245,2550.6,2550.4,0.58266187]
[1646976555870,0.05392844,2550.6,2550.4,0.58266187]
[1646976556872,0.05007245,2550.6,2550.4,0.58266187]
[1646976557117,0.05392844,2550.6,2550.4,0.58266187]
[1646976557922,0.05007245,2550.6,2550.4,0.58266187]
[1646976558323,0.05392844,2550.6,2550.4,0.58266187]
[1646976559124,0.05007245,2550.6,2550.4,0.58266187]
[1646976559527,0.05392844,2550.6,2550.4,0.58266187]
[1646976559725,0.05392844,2550.6,2550.1,2.17289578]
[1646976560030,0.05392844,2550.6,2550.1,1.1893]
[1646976560425,0.05007245,2550.6,2550.1,1.1893]
[1646976560630,0.00385603,2550.5,2550.1,1.1893]
[1646976561466,0.00385603,2550.5,2550.1,2.5803977]
[1646976561666,0.05007245,2550.6,2550.1,2.5803977]
[1646976561873,0.00385604,2550.4,2550.1,2.5803977]
[1646976562874,1.61666045,2550.5,2550.1,2.5803977]
[1646976563074,0.00385605,2550.4,2550.1,1.3910977]
[1646976564075,1.61666045,2550.5,2550.1,1.3910977]
[1646976564276,0.00385605,2550.4,2550.1,1.3910977]
[1646976564719,0.00385605,2550.4,2550.2,3.5]
[1646976565222,0.05007245,2550.6,2550.2,3.5]
[1646976565621,0.00385604,2550.4,2550.2,3.5]
[1646976566419,0.05007245,2550.6,2550.2,3.5]
[1646976566619,0.00385604,2550.4,2550.2,3.5]
[1646976567624,0.05007245,2550.6,2550.2,3.5]
[1646976567928,0.00385604,2550.4,2550.2,3.5]
[1646976568768,0.05007245,2550.6,2550.2,3.5]
[1646976568966,0.00385604,2550.4,2550.2,3.5]
[1646976570068,0.05007245,2550.6,2550.2,3.5]
[1646976570268,0.00385604,2550.4,2550.2,3.5]
[1646976570475,0.00385604,2550.4,2550.3,0.06946258]
[1646976570669,0.00385604,2550.4,2550.3,0.94646258]
[1646976570868,0.00385604,2550.4,2550.3,4.44646258]
[1646976571268,0.05007245,2550.6,2550.4,0.0804047]
[1646976571468,0.00385603,2550.5,2550.4,0.0804047]
[1646976571668,0.00385603,2550.5,2550.4,3.5804047]
[1646976572523,0.05007245,2550.6,2550.5,0.00133888]
[1646976572726,0.05392845,2550.6,2550.5,0.00133888]
[1646976573524,0.05007245,2550.6,2550.5,0.00133888]
[1646976575873,0.05007245,2550.6,2550.4,3.53174358]
[1646976577374,0.05406626,2550.6,2550.4,3.53174358]
[1646976578376,0.05007245,2550.6,2550.4,3.53174358]
[1646976578677,0.05406626,2550.6,2550.4,3.53174358]
[1646976579616,0.05007245,2550.6,2550.4,3.53174358]
[1646976579824,0.05332921,2550.6,2550.4,3.53174358]
[1646976580826,0.05007245,2550.6,2550.4,3.53174358]
[1646976581023,0.05332921,2550.6,2550.4,3.53174358]
[1646976582031,0.05007245,2550.6,2550.4,3.53174358]
[1646976582324,0.05406929,2550.6,2550.4,3.53174358]
[1646976583381,0.05007245,2550.6,2550.4,3.53174358]